bitfinex-derivatives/quotes_SOLF0:USTF0_20250530
["timestamp","ask_amount","ask_price","bid_price","bid_amount"]
[1748588970576,0.04202274,163.24,163.2,33.92321374]
[1748588973278,6.16562274,163.24,163.2,33.92321374]
[1748588973683,0.04202274,163.24,163.2,33.92321374]
[1748588974385,6.16552274,163.24,163.2,40.04791374]
[1748588974581,0.04202274,163.24,163.2,33.92321374]
[1748588976087,0.04202274,163.24,163.2,0.04321374]
[1748588976282,6.1243,163.22,163.2,0.04321374]
[1748588976482,0.04202274,163.24,163.2,0.04321374]
[1748588976989,0.04202274,163.24,163.21,34.16]
[1748588977176,0.04202274,163.24,163.21,13.37069357]
[1748588977379,6.1242,163.22,163.21,13.37069357]
[1748588977982,9.75390725,163.22,163.21,13.37069357]
[1748588978277,6.1242,163.22,163.21,13.37069357]
[1748588978482,0.04202274,163.24,163.21,13.37069357]
[1748588978483,6.1239,163.23,163.21,13.37069357]
[1748588978687,3.64095868,163.22,163.2,0.04321374]
[1748588978877,0.04202274,163.24,163.2,0.04321374]
[1748588979077,6.1245,163.22,163.2,0.04321374]
[1748588979389,0.04202274,163.24,163.2,0.04321374]
[1748588979588,3.64095101,163.23,163.2,0.04321374]
[1748588979888,6.1239,163.23,163.2,0.04321374]
[1748588980486,0.04202274,163.24,163.2,0.04321374]
[1748588980683,3.63397554,163.23,163.2,0.04321374]
[1748588980890,3.63376442,163.22,163.2,0.04321374]
[1748588981087,3.63376442,163.21,163.2,0.04321374]
[1748588981292,9.75891616,163.21,163.2,0.04321374]
[1748588982191,6.1246,163.21,163.2,0.04321374]
[1748588982483,9.76174401,163.21,163.2,0.04321374]
[1748588982678,9.76136555,163.21,163.2,0.04321374]
[1748588982879,13.3981222,163.21,163.2,0.04321374]
[1748588983084,13.39812221,163.21,163.2,0.04321374]
[1748588983283,9.7613611,163.21,163.2,0.04321374]
[1748588983892,13.39807338,163.21,163.2,0.04321374]
[1748588984090,13.40170402,163.21,163.2,0.04321374]
[1748588984891,13.39988289,163.21,163.2,0.04321374]
[1748588985292,9.7613611,163.21,163.2,0.04321374]
[1748588985492,13.39970443,163.21,163.2,0.04321374]
[1748588985686,13.3992706,163.21,163.2,0.04321374]
[1748588985992,13.39819647,163.21,163.2,0.04321374]
[1748588986390,13.39836148,163.21,163.2,0.04321374]
[1748588986789,13.40356929,163.21,163.2,0.04321374]
[1748588986991,13.40356927,163.21,163.2,0.04321374]
[1748588987186,9.7613611,163.21,163.2,0.04321374]
[1748588987592,13.40355918,163.21,163.2,0.04321374]
[1748588987789,13.40355918,163.21,163.2,1.374e-05]
[1748588988585,9.7613611,163.21,163.2,1.374e-05]
[1748588988893,13.40131741,163.21,163.2,1.374e-05]
[1748588989093,9.7613611,163.21,163.2,1.374e-05]
[1748588989397,13.40114378,163.21,163.2,1.374e-05]
[1748588990598,13.39686966,163.21,163.2,1.374e-05]
[1748588990791,9.7613611,163.21,163.2,1.374e-05]
[1748588991994,13.39973795,163.21,163.2,1.374e-05]
[1748588992196,9.7613611,163.21,163.2,1.374e-05]
[1748588992393,13.39969094,163.21,163.2,1.374e-05]
[1748588992594,6.1257,163.18,163.17,13.38101067]
[1748588993586,9.76389277,163.18,163.17,13.38101067]
[1748588993898,6.1257,163.18,163.17,13.38101067]
[1748588994287,9.7639037,163.18,163.17,13.38101067]
[1748588994492,6.1257,163.18,163.17,13.38101067]
[1748588995199,9.7638618,163.18,163.17,13.38101067]
[1748588995393,13.40205274,163.18,163.17,13.38101067]
[1748588995597,9.7638618,163.18,163.17,13.38101067]
[1748588996408,13.40204341,163.18,163.17,13.38101067]
[1748588997104,13.40211988,163.18,163.17,13.38101067]
[1748588997607,13.40217798,163.18,163.17,13.38101067]
[1748588997807,9.7638618,163.18,163.17,13.38101067]
[1748588998003,7.27646852,163.18,163.17,13.38101067]
[1748588998201,3.6381618,163.18,163.17,13.38101067]
[1748588998604,9.7638618,163.18,163.17,13.38101067]
[1748589000511,3.6381618,163.18,163.17,13.38101067]
[1748589000911,9.7638618,163.18,163.17,13.38101067]
[1748589001108,3.6381618,163.18,163.13,47.49667741]
[1748589001413,6.1272,163.14,163.13,47.49667741]
[1748589001611,6.1272,163.14,163.13,13.33667741]
[1748589003012,9.76724906,163.14,163.13,13.33667741]
[1748589003221,9.76835533,163.14,163.13,13.33667741]
[1748589003414,6.1272,163.14,163.13,13.33667741]
[1748589004710,9.76277843,163.14,163.13,13.33667741]
[1748589004917,9.76278634,163.14,163.13,13.33667741]
[1748589005112,6.1272,163.14,163.13,13.33667741]
[1748589005909,9.76281476,163.14,163.13,13.33667741]
[1748589006617,6.1272,163.14,163.13,13.33667741]
[1748589006808,9.75202718,163.14,163.13,13.33667741]
[1748589007008,6.1272,163.14,163.13,13.33667741]
[1748589007621,9.75180225,163.14,163.13,7.741e-05]
[1748589007923,6.1272,163.14,163.13,7.741e-05]
[1748589008715,6.1295,163.08,163.07,2.0486]
[1748589011521,0.03898823,163.09,163.07,2.0486]
[1748589011926,6.1295,163.08,163.07,2.0486]
[1748589013318,6.1295,163.08,163.06,33.88]
[1748589013519,6.1299,163.07,163.06,33.88]
[1748589014122,6.1296,163.08,163.06,33.88]
[1748589015422,0.03898823,163.09,163.01,35.8365]
[1748589015726,3.62844486,163.08,163.01,1.9565]
[1748589015920,3.62840954,163.07,162.98,37.9961]
[1748589016118,0.04387377,163.04,162.98,37.9961]
[1748589017026,6.1324,163.01,162.98,37.9961]
[1748589017213,0.04387377,163.04,162.98,37.9961]
[1748589017617,6.1327,163.0,162.98,37.9961]
[1748589017923,0.04045345,163.01,162.98,37.9961]
[1748589018329,33.88,163.07,162.98,44.1291]
[1748589018627,33.88,163.07,162.98,37.9961]
[1748589018829,6.1307,163.05,162.99,6.1326]
[1748589019024,6.1307,163.05,162.99,19.44174832]
[1748589019221,0.04623625,163.04,163.0,0.04635585]
[1748589019725,0.04623625,163.04,163.0,6.17875585]
[1748589019926,6.17723625,163.04,163.0,0.04635585]
[1748589020524,9.76110942,163.03,163.0,0.04635585]
[1748589020725,6.1314,163.03,163.0,0.04635585]
[1748589021224,6.1314,163.03,163.0,6.17885585]
[1748589021425,6.1318,163.02,163.0,0.04635585]
[1748589022127,6.1321,163.01,163.0,0.04635585]
[1748589022829,6.1315,163.03,163.0,0.04635585]
[1748589023534,6.1319,163.02,163.0,0.04635585]
[1748589024823,6.1321,163.01,163.0,0.04635585]
[1748589025828,0.04623625,163.04,163.0,0.04635585]
[1748589026241,6.1321,163.01,163.0,0.04635585]
[1748589027635,6.1321,163.01,162.82,12.2784]
[1748589027636,6.1348,162.94,162.9,40.0362]
[1748589027831,33.9,163.02,162.9,33.9]
[1748589028137,3.60908803,163.01,162.9,33.9]
[1748589028336,33.9,163.02,162.91,6.1356]
[1748589028531,0.03965686,162.99,162.91,6.1356]
[1748589028933,6.1342,162.96,162.91,6.1356]
[1748589029438,6.1338,162.97,162.92,6.1355]
[1748589029737,6.1338,162.97,162.9,33.9]
[1748589030132,0.03965686,162.99,162.9,33.9]
[1748589030834,0.03965686,162.99,162.91,6.1358]
[1748589031030,0.03965686,162.99,162.9,33.9]
[1748589031633,0.03965686,162.99,162.94,33.9]
[1748589033037,6.1336,162.98,162.94,33.9]
[1748589033641,6.1337,162.97,162.94,33.9]
[1748589036535,6.1342,162.96,162.94,33.9]
[1748589037539,6.1344,162.95,162.94,33.9]
[1748589038241,0.03965686,162.99,162.94,33.9]
[1748589038835,0.03965686,162.99,162.94,40.0345]
[1748589039033,6.1334,162.98,162.94,40.0345]
[1748589039237,0.03965686,162.99,162.94,33.9]
[1748589039633,6.1335,162.98,162.94,33.9]
[1748589039842,0.03965686,162.99,162.94,33.9]
[1748589040136,6.1334,162.98,162.94,33.9]
[1748589041136,6.1334,162.98,162.94,40.0347]
[1748589041337,6.1337,162.97,162.94,33.9]
[1748589041736,6.1343,162.96,162.94,33.9]
[1748589041936,0.03965686,162.99,162.94,33.9]
[1748589042136,0.03965686,162.99,162.89,6.2426]
[1748589042137,6.75245337,162.98,162.89,6.2426]
[1748589042346,6.1354,162.93,162.89,39.3626]
[1748589042644,6.79194204,162.95,162.89,37.2262]
[1748589042839,6.1357,162.92,162.89,35.253]
[1748589043033,6.79194204,162.95,162.89,2.133]
[1748589043238,0.03948867,162.95,162.91,6.1359]
[1748589043838,0.03948867,162.95,162.9,6.1362]
[1748589044038,6.17408867,162.95,162.9,6.1362]
[1748589044640,6.17408867,162.95,162.91,6.1359]
[1748589044841,0.03948867,162.95,162.9,33.12]
[1748589045146,0.03948867,162.95,162.91,2.0414]
[1748589046351,0.03948867,162.95,162.92,6.1352]
[1748589046645,6.17388867,162.95,162.92,6.1352]
[1748589047037,6.17388867,162.95,162.91,2.0414]
[1748589047038,6.17388867,162.95,162.91,8.1772]
[1748589047545,6.1349,162.94,162.91,8.1772]
[1748589047745,0.03948867,162.95,162.91,2.0414]
[1748589047945,6.1348,162.94,162.91,2.0414]
[1748589048142,0.03948867,162.95,162.9,33.12]
[1748589048640,0.03948867,162.95,162.89,2.133]
[1748589048845,0.03948867,162.95,162.87,33.12]
[1748589049042,6.1361,162.91,162.87,39.2573]
[1748589049238,6.1768322,162.91,162.87,39.2573]
[1748589049945,6.1363,162.9,162.87,39.2573]
[1748589050239,0.0407322,162.91,162.87,33.12]
[1748589050644,6.1366,162.9,162.87,39.2573]
[1748589050845,0.0407322,162.91,162.87,33.12]
[1748589051143,6.1363,162.9,162.87,33.12]
[1748589051343,0.0407322,162.91,162.87,33.12]
[1748589051848,6.1365,162.9,162.87,33.12]
[1748589052141,0.0407322,162.91,162.87,39.2574]
[1748589052347,6.1767322,162.91,162.87,39.2574]
[1748589052644,0.0407322,162.91,162.87,33.12]
[1748589053046,0.0407322,162.91,162.87,39.2574]
[1748589053749,0.0407322,162.91,162.87,33.12]
[1748589054248,6.1365,162.9,162.87,33.12]
[1748589054650,6.1768322,162.91,162.87,39.2573]
[1748589055345,0.0407322,162.91,162.83,33.12]
[1748589055553,0.04128193,162.89,162.83,33.12]
[1748589055757,0.04128193,162.89,162.84,6.1672]
[1748589056049,2.0056,162.98,162.85,0.04018979]
[1748589056050,33.12,162.98,162.85,0.04018979]
[1748589056250,3.62709143,162.97,162.84,12.91965337]
[1748589056453,6.135,162.94,162.9,6.136]
[1748589056654,3.62709502,162.93,162.9,6.136]
[1748589056851,6.135,162.94,162.9,6.136]
[1748589057049,6.17760143,162.93,162.9,0.04519413]
[1748589057956,0.04240143,162.93,162.9,6.18119413]
[1748589058647,6.17760143,162.93,162.9,6.18119413]
[1748589059854,0.04240143,162.93,162.9,6.18119413]
[1748589060556,0.04240143,162.93,162.9,0.04519413]
[1748589060754,0.04240143,162.93,162.9,4.05179413]
[1748589061161,0.04240143,162.93,162.92,6.1355]
[1748589061661,6.1338,162.97,162.94,6.1345]
[1748589062158,6.134,162.96,162.93,6.1351]
[1748589062354,3.62374739,163.0,162.93,6.1351]
[1748589062549,39.87245337,163.01,162.9,5.9982]
[1748589062758,0.04207655,162.97,162.94,0.04216349]
[1748589063948,3.62657402,162.96,162.94,0.04216349]
[1748589064154,6.1344,162.95,162.94,0.04216349]
[1748589067062,9.76611066,162.95,162.94,0.04216349]
[1748589067364,9.76602948,162.95,162.94,0.04216349]
[1748589067667,3.63162948,162.95,162.86,32.9]
[1748589067961,3.63167996,162.94,162.86,32.9]
[1748589068265,39.0297,162.97,162.86,32.9]
[1748589068463,3.63067242,162.96,162.86,32.9]
[1748589068664,0.04283841,162.93,162.89,0.0406762]
[1748589068864,32.94283841,162.93,162.89,0.0406762]
[1748589069052,3.63037524,162.92,162.89,0.0406762]
[1748589069259,32.94283841,162.93,162.89,0.0406762]
[1748589069559,6.1363,162.9,162.89,0.0406762]
[1748589069767,9.7666121,162.9,162.89,0.0406762]
[1748589070063,9.7666121,162.9,162.77,122.36]
[1748589070064,3.62990433,162.9,162.79,32.9]
[1748589070367,43.27405503,162.89,162.8,6.1398]
[1748589070563,32.9,162.88,162.79,32.9]
[1748589070954,0.04335664,162.85,162.79,32.9]
[1748589071453,0.04335664,162.85,162.79,39.0403]
[1748589071659,6.1389,162.84,162.79,39.0403]
[1748589071962,0.04335664,162.85,162.8,6.14]
[1748589072361,6.1385,162.84,162.8,6.14]
[1748589072667,0.04335664,162.85,162.81,6.1397]
[1748589072966,0.04335664,162.85,162.79,32.9]
[1748589073163,32.9,162.91,162.84,6.1385]
[1748589073465,32.9,162.91,162.81,6.75245337]
[1748589073466,6.136,162.91,162.83,32.9]
[1748589073666,6.136,162.91,162.84,3.9916]
[1748589074259,0.04578033,162.89,162.86,0.04275799]
[1748589074461,0.04578033,162.89,162.88,6.137]
[1748589074858,0.04578033,162.89,162.86,0.04275799]
[1748589075265,0.04578033,162.89,162.86,6.18045799]
[1748589076167,6.18248033,162.89,162.86,6.18045799]
[1748589076971,0.04578033,162.89,162.86,0.04275799]
[1748589077565,6.137,162.88,162.86,0.04275799]
[1748589079272,6.1374,162.87,162.86,0.04275799]
[1748589080573,0.04578033,162.89,162.86,0.04275799]
[1748589081573,6.1374,162.87,162.86,0.04275799]
[1748589084073,6.1372,162.88,162.86,0.04275799]
[1748589084272,0.04578033,162.89,162.86,0.04275799]
[1748589084473,6.1373,162.88,162.86,0.04275799]
[1748589084673,0.04578033,162.89,162.86,0.04275799]
[1748589085472,6.1374,162.87,162.86,0.04275799]
[1748589086679,6.1371,162.88,162.86,0.04275799]
[1748589087672,6.1374,162.87,162.86,0.04275799]
[1748589104918,9.76036776,162.87,162.86,0.04275799]
[1748589105415,13.38389702,162.87,162.86,0.04275799]
[1748589105604,9.76036776,162.87,162.86,0.04275799]
[1748589106518,9.76036776,162.87,162.86,5.799e-05]
[1748589106712,13.38297091,162.87,162.86,5.799e-05]
[1748589106910,17.00589836,162.87,162.86,5.799e-05]
[1748589107209,17.00589836,162.87,162.78,4.1503]
[1748589107210,13.99802428,162.87,162.78,4.1503]
[1748589107415,32.74,162.86,162.78,4.1503]
[1748589108109,6.1404,162.79,162.78,4.1503]
[1748589108310,6.1404,162.79,162.78,2.141]
[1748589108615,6.1415,162.77,162.74,2.1401]
[1748589108808,0.03883789,162.8,162.74,2.1401]
[1748589109116,0.03883789,162.8,162.74,34.9001]
[1748589109316,6.1417,162.76,162.74,34.9001]
[1748589110214,6.1419,162.75,162.74,32.76]
[1748589111816,0.046605,162.77,162.74,32.76]
[1748589112114,32.76,162.85,162.74,32.76]
[1748589112312,7.24557091,162.87,162.75,6.75245337]
[1748589112519,3.60813692,162.84,162.75,6.75245337]
[1748589112712,6.1393,162.83,162.79,6.1402]
[1748589113014,0.03902421,162.83,162.79,32.80664574]
[1748589113215,6.138,162.86,162.83,6.1387]
[1748589113418,7.24557091,162.87,162.83,38.8987]
[1748589113906,13.38307091,162.87,162.83,38.8987]
[1748589114105,7.28994452,162.87,162.83,38.9439348]
[1748589114312,7.28994452,162.87,162.83,32.8052348]
[1748589114618,6.1383,162.85,162.83,32.8052348]
[1748589114820,7.28994452,162.87,162.83,32.8052348]
[1748589115007,13.42744452,162.87,162.83,32.8052348]
[1748589117013,7.28994452,162.87,162.84,6.1383]
[1748589117813,13.42764452,162.87,162.83,38.9440348]
[1748589118514,13.42764452,162.87,162.84,6.1385]
[1748589119915,7.28994452,162.87,162.83,32.8052348]
[1748589120426,7.28994452,162.87,162.83,39.55768817]
[1748589120922,7.28994452,162.87,162.86,6.1378]
[1748589121722,7.28994452,162.87,162.83,39.55768817]
[1748589123611,7.28994452,162.87,162.85,6.1379]
[1748589123813,7.28994452,162.87,162.83,32.8052348]
[1748589124020,7.28994452,162.87,162.86,6.1378]
[1748589125319,34.8605,162.98,162.85,6.75245337]
[1748589125512,34.8605,162.98,162.86,2.1231]
[1748589125712,6.1345,162.95,162.9,6.136]
[1748589126023,34.8605,162.98,162.88,2.1247]
[1748589126221,6.1354,162.93,162.91,0.04499527]
[1748589126719,6.1348,162.94,162.91,0.04499527]
[1748589127322,6.1351,162.94,162.91,0.04499527]
[1748589127722,0.04364115,162.95,162.91,6.18089527]
[1748589128018,6.17834115,162.95,162.91,6.18089527]
[1748589128322,0.04364115,162.95,162.91,6.18089527]
[1748589128523,6.135,162.94,162.91,6.18089527]
[1748589128819,0.04364115,162.95,162.91,0.04499527]
[1748589129123,0.04364115,162.95,162.91,32.68499527]
[1748589129418,0.04364115,162.95,162.92,6.1353]
[1748589129821,0.04364115,162.95,162.92,6.1355]
[1748589132016,0.04364115,162.95,162.93,6.135]
[1748589132223,0.04364115,162.95,162.91,32.68499527]
[1748589132619,0.04364115,162.95,162.93,6.1351]
[1748589132815,0.04364115,162.95,162.91,32.68499527]
[1748589133022,0.04364115,162.95,162.94,6.1348]
[1748589133225,0.04364115,162.95,162.91,32.68499527]
[1748589133615,0.04364115,162.95,162.92,6.1355]
[1748589134326,6.17834115,162.95,162.92,6.1355]
[1748589134627,6.17834115,162.95,162.91,38.82079527]
[1748589134628,0.04364115,162.95,162.91,38.82079527]
[1748589135325,0.04364115,162.95,162.92,6.1355]
[1748589135532,0.04364115,162.95,162.91,32.68499527]
[1748589136629,0.04364115,162.95,162.94,6.1348]
[1748589137425,122.98396448,163.01,162.91,32.68499527]
[1748589137426,122.98396448,163.01,162.92,2.1536]
[1748589137838,6.1334,162.98,162.92,2.1536]
[1748589138032,6.1334,162.98,162.95,6.1341]
[1748589138334,6.18038329,162.98,162.95,6.17583139]
[1748589138523,0.04698329,162.98,162.95,6.17583139]
[1748589138926,0.04698329,162.98,162.95,32.68173139]
[1748589139430,0.04698329,162.98,162.96,6.1337]
[1748589139825,0.04698329,162.98,162.95,32.68173139]
[1748589140325,0.04698329,162.98,162.95,0.04173139]
[1748589140726,6.1337,162.97,162.95,0.04173139]
[1748589140927,0.04698329,162.98,162.95,0.04173139]
[1748589141829,0.04698329,162.98,162.96,6.1338]
[1748589143231,6.18028329,162.98,162.96,6.1338]
[1748589143442,0.04698329,162.98,162.96,6.1338]
[1748589146830,0.04698329,162.98,162.97,6.1337]
[1748589147234,0.04698329,162.98,162.96,32.62]
[1748589147235,2.0784,163.03,162.96,32.62]
[1748589147432,2.0784,163.03,162.96,34.5831]
[1748589147735,530.08,163.09,162.97,6.75245337]
[1748589147935,1.9765,163.08,162.97,6.75245337]
[1748589148137,0.03990863,163.04,163.02,6.1315]
[1748589148432,0.03990863,163.04,163.01,0.04584869]
[1748589148433,0.03990863,163.04,163.01,32.66584869]
[1748589148632,27.88495142,163.14,163.01,32.66584869]
[1748589148633,32.62,163.12,163.01,32.66584869]
[1748589148836,6.1291,163.1,163.01,32.62]
[1748589149030,32.62,163.12,163.03,6.75245337]
[1748589149439,1.9765,163.13,163.01,32.62]
[1748589149631,0.04529609,163.09,163.05,0.04135701]
[1748589149831,0.04529609,163.09,163.06,32.62]
[1748589150540,0.04529609,163.09,163.08,6.1295]
[1748589150842,0.04529609,163.09,163.06,32.62]
[1748589151240,0.04529609,163.09,163.07,6.1298]
[1748589152043,0.04529609,163.09,163.06,38.7502]
[1748589152242,0.04529609,163.09,163.06,32.62]
[1748589152844,0.04529609,163.09,163.06,38.7503]
[1748589153244,0.04529609,163.09,163.06,32.62]
[1748589153740,2.1558,163.15,163.06,32.62]
[1748589154139,6.1276,163.14,163.06,39.37245337]
[1748589154845,0.04522985,163.12,163.1,6.1287]
[1748589155043,0.04522985,163.12,163.1,38.7487]
[1748589155247,0.04522985,163.12,163.1,32.62]
[1748589156247,0.04522985,163.12,163.1,38.7487]
[1748589156449,0.04522985,163.12,163.1,32.62]
[1748589157153,32.6,163.2,163.1,32.62]
[1748589157337,6.1263,163.17,163.13,6.1274]
[1748589157536,32.6,163.2,163.1,32.62]
[1748589157944,32.6,163.2,163.1,39.37245337]
[1748589158143,6.16735876,163.17,163.13,6.17379316]
[1748589158338,0.04095876,163.17,163.13,0.04619316]
[1748589158745,6.1266,163.16,163.13,0.04619316]
[1748589159043,0.04095876,163.17,163.13,0.04619316]
[1748589159440,0.04095876,163.17,163.14,6.1269]
[1748589159753,0.04095876,163.17,163.14,32.58]
[1748589159952,0.04095876,163.17,163.15,6.1266]
[1748589161247,0.04095876,163.17,163.16,6.1265]
[1748589161647,39.33245337,163.26,163.14,32.58]
[1748589161850,39.33245337,163.26,163.18,6.1257]
[1748589162054,39.33245337,163.26,163.14,32.58]
[1748589162449,39.33245337,163.26,163.17,6.1261]
[1748589162653,6.1247,163.21,163.19,0.04669464]
[1748589163045,6.125,163.2,163.19,0.04669464]
[1748589163242,0.0438381,163.22,163.14,32.58]
[1748589163447,6.75245337,163.23,163.14,32.58]
[1748589163643,6.126,163.18,163.14,32.58]
[1748589164251,6.17149353,163.18,163.14,32.61922959]
[1748589164751,6.17149353,163.18,163.14,38.74642959]
[1748589164957,6.1262,163.17,163.14,32.61922959]
[1748589165945,0.04549353,163.18,163.14,32.61922959]
[1748589167052,0.04549353,163.18,163.14,38.74642959]
[1748589167657,6.17149353,163.18,163.14,38.74642959]
[1748589167857,0.04549353,163.18,163.14,32.61922959]
[1748589168462,6.17139353,163.18,163.14,32.61922959]
[1748589168955,0.04549353,163.18,163.14,32.61922959]
[1748589169653,6.1265,163.17,163.14,32.61922959]
[1748589170460,6.1265,163.17,163.14,38.74642959]
[1748589170660,6.17139353,163.18,163.14,38.74642959]
[1748589170958,0.04549353,163.18,163.14,38.74642959]
[1748589171158,6.1262,163.17,163.14,32.61922959]
[1748589171865,6.1262,163.17,163.14,38.74652959]
[1748589172063,6.1262,163.17,163.14,32.61922959]
[1748589173358,6.17139353,163.18,163.14,38.74622959]
[1748589174059,6.17139353,163.18,163.15,6.1269]
[1748589175266,0.04549353,163.18,163.14,32.61922959]
[1748589175965,6.1264,163.17,163.14,32.61922959]
[1748589176654,6.1267,163.16,163.14,32.61922959]
[1748589176861,0.04549353,163.18,163.14,32.61922959]
[1748589177260,6.1269,163.15,163.14,0.03922959]
[1748589180265,6.1266,163.16,163.14,0.03922959]
[1748589180461,2.0891,163.17,163.14,0.03922959]
[1748589180968,6.1269,163.15,163.14,0.03922959]
[1748589185572,6.1267,163.16,163.14,0.03922959]
[1748589185875,0.04549353,163.18,163.14,6.16622959]
[1748589186767,0.04549353,163.18,163.14,0.03922959]
[1748589187772,0.04549353,163.18,163.14,6.16622959]
[1748589187773,6.17129353,163.18,163.14,6.16622959]
[1748589188770,6.1262,163.17,163.14,0.03922959]
[1748589189074,0.04549353,163.18,163.14,0.03922959]
[1748589189274,6.1264,163.17,163.14,0.03922959]
[1748589189475,4.1536,163.27,163.14,0.03922959]
[1748589189476,529.32,163.38,163.16,6.75245337]
[1748589189673,1.9879,163.3,163.17,4.1055]
[1748589189973,6.1235,163.24,163.18,32.56]
[1748589190570,0.03964342,163.23,163.19,0.04267856]
[1748589190974,0.03964342,163.23,163.19,6.16807856]
[1748589191370,0.03964342,163.23,163.19,0.04267856]
[1748589192279,0.03964342,163.23,163.22,6.1243]
[1748589192481,0.03964342,163.23,163.22,32.54]
[1748589195177,0.03964342,163.23,163.22,38.6643]
[1748589196387,1.9879,163.3,163.22,38.6643]
[1748589196388,1.9879,163.3,163.25,6.1231]
[1748589196584,6.1223,163.28,163.22,32.54]
[1748589197283,6.1223,163.28,163.23,0.04384071]
[1748589197589,0.03996773,163.27,163.24,6.1234]
[1748589198284,6.16256773,163.27,163.23,0.04384071]
[1748589198784,6.16256773,163.27,163.23,6.16744071]
[1748589198978,6.16256773,163.27,163.23,0.04384071]
[1748589199183,0.03996773,163.27,163.24,6.1232]
[1748589199491,0.03996773,163.27,163.24,6.75245337]
[1748589200686,0.03996773,163.27,163.26,6.1228]
[1748589200878,0.03996773,163.27,163.26,38.6628]
[1748589202188,2.0088,163.34,163.26,32.54]
[1748589202383,32.54,163.4,163.28,6.75245337]
[1748589202586,6.1199,163.34,163.28,6.75245337]
[1748589202886,34.5079,163.4,163.28,6.75245337]
[1748589203086,0.03973962,163.36,163.32,0.04125841]
[1748589203288,0.03973962,163.36,163.33,32.54]
[1748589203987,0.03973962,163.36,163.34,6.75245337]
[1748589205186,0.03973962,163.36,163.33,32.54]
[1748589205381,6.1198,163.34,163.33,32.54]
[1748589207387,6.1195,163.35,163.33,32.54]
[1748589208980,0.03973962,163.36,163.33,32.54]
[1748589209587,0.03973962,163.36,163.32,0.04125841]
[1748589210286,6.1202,163.33,163.32,0.04125841]
[1748589212395,6.1199,163.34,163.32,0.04125841]
[1748589212594,0.03973962,163.36,163.32,0.04125841]
[1748589213390,6.1202,163.33,163.32,0.04125841]
[1748589213793,0.03973962,163.36,163.26,32.52]
[1748589213993,32.52,163.35,163.26,32.52]
[1748589214996,0.04189062,163.32,163.29,0.04415568]
[1748589216006,6.1215,163.3,163.29,0.04415568]
[1748589217895,6.1224,163.27,163.26,32.52]
[1748589218303,2.1163,163.31,163.26,32.52]
[1748589218508,2.1163,163.31,163.23,32.52]
[1748589218915,6.1223,163.28,163.25,0.04178143]
[1748589220103,0.04063386,163.29,163.25,0.04178143]
[1748589220104,6.1224,163.27,163.25,0.04178143]
[1748589220504,0.04063386,163.29,163.25,0.04178143]
[1748589221512,6.1223,163.28,163.25,0.04178143]
[1748589223208,0.04063386,163.29,163.25,0.04178143]
[1748589223408,2.0786,163.38,163.25,6.7942348]
[1748589223613,34.5586,163.38,163.28,6.75245337]
[1748589223913,34.5586,163.38,163.29,32.48]
[1748589223914,6.1213,163.3,163.29,32.48]
[1748589224412,34.5586,163.38,163.29,32.48]
[1748589224607,0.04686422,163.35,163.32,1.918e-05]
[1748589224812,0.04686422,163.35,163.26,32.48]
[1748589225011,32.48,163.34,163.26,32.48]
[1748589225211,2.0192,163.33,163.26,32.48]
[1748589225801,2.0192,163.33,163.28,0.04702547]
[1748589225802,0.04363681,163.31,163.28,0.04702547]
[1748589226002,6.1217,163.29,163.28,0.04702547]
[1748589228308,0.04363681,163.31,163.28,0.04702547]
[1748589228713,0.04363681,163.31,163.3,6.1213]
[1748589229110,6.1195,163.35,163.31,6.1206]
[1748589229415,6.1195,163.35,163.3,6.75245337]
[1748589229612,6.1195,163.35,163.31,32.48]
[1748589230111,6.1195,163.35,163.31,38.6006]
[1748589230312,6.16543959,163.35,163.31,38.6440873]
[1748589230608,0.04593959,163.35,163.31,32.5234873]
[1748589231115,0.04593959,163.35,163.31,0.0434873]
[1748589231420,6.1205,163.32,163.31,0.0434873]
[1748589232407,6.1202,163.33,163.31,0.0434873]
[1748589232915,6.1205,163.32,163.31,0.0434873]
[1748589235917,6.1203,163.33,163.31,0.0434873]
[1748589236306,0.04593959,163.35,163.32,32.48]
[1748589236513,6.1202,163.33,163.32,32.48]
[1748589236712,6.1202,163.33,163.31,0.0434873]
[1748589236713,0.04593959,163.35,163.31,0.0434873]
[1748589237235,6.1203,163.33,163.31,0.0434873]
[1748589237818,6.1205,163.32,163.31,0.0434873]